[Event "Najdorf Memorial-A 2022"]
[Site "Warsaw"]
[Date "2022.07.13"]
[Round "5.7"]
[White "Szwaj, Justyna"]
[Black "Jedrusik, Adam"]
[Result "0-1"]
[ECO "B13"]
[WhiteElo "1797"]
[BlackElo "1960"]
[Annotator "ChessBase"]
[PlyCount "140"]
[EventDate "2022.07.09"]
[EventType "swiss"]
[EventCountry "POL"]
[SourceTitle "playchess.com"]
[Source "ChessBase"]
[SourceQuality "1"]
[TimeControl "40/5400+30:1800+30"]

1. e4 {[%emt 0:03:11]} c6 {[%emt 0:00:01]} 2. d4 {[%emt 0:00:05]} d5 {[%emt 0:00:04]} 3. exd5 {[%emt 0:00:04]} cxd5 {[%emt 0:00:03]} 4. Bd3 {[%emt 0:00:04]} Nc6 {[%emt 0:00:03]} 5. c3 {[%emt 0:00:09]} Qc7 {[%emt 0:00:01]} 6. Ne2 {[%emt 0:00:09]} Bg4 {[%emt 0:00:07]} 7. O-O {[%emt 0:00:14]} e6 {[%emt 0:00:08]} 8. Qe1 {[%emt 0:00:14]} Nf6 {[%emt 0:00:56]} 9. f3 {[%emt 0:01:48]} Bh5 {[%emt 0:00:01]} 10. Qh4 {[%emt 0:01:25]} Rg8 {[%emt 0:00:02]} 11. Bg5 {[%emt 0:04:03]} Bg6 {[%emt 0:01:56]} 12. Bxg6 {[%emt 0:04:20]} hxg6 {[%emt 0:00:11]} 13. Bxf6 {[%emt 0:00:35]} gxf6 {[%emt 0:00:02]} 14. Qxf6 {[%emt 0:00:07]} Be7 {[%emt 0:00:30]} 15. Qf4 {[%emt 0:00:28]} Bd6 {[%emt 0:00:02]} 16. Qh4 {[%emt 0:06:06]} g5 {[%emt 0:06:08]} 17. Qh7 {[%emt 0:00:35]} O-O-O {[%emt 0:00:14]} 18. g3 {[%emt 0:01:14]} Rh8 {[%emt 0:04:30]} 19. Qd3 {[%emt 0:03:15]} Rh3 {[%emt 0:05:51]} 20. Nd2 {[%emt 0:19:47]} Rdh8 {[%emt 0:01:21]} 21. Rf2 {[%emt 0:11:55]} Bxg3 {[%emt 0:00:47]} 22. Nxg3 {[%emt 0:00:34]} Qxg3+ {[%emt 0:00:13]} 23. Rg2 {[%emt 0:00:27]} Qf4 {[%emt 0:02:01]} 24. Qe2 {[%emt 0:03:04]} Ne7 {[%emt 0:02:19]} 25. Re1 {[%emt 0:19:21]} Ng6 {[%emt 0:05:57]} 26. Qe3 {[%emt 0:02:53]} Qh4 {[%emt 0:04:26]} 27. Nf1 {[%emt 0:07:57]} Nf4 {[%emt 0:03:16]} 28. Rc2 {[%emt 0:00:40]} Rxf3 {[%emt 0:02:02]} 29. Qxf3 {[%emt 0:03:41]} Qxe1 {[%emt 0:00:05]} 30. c4 {[%emt 0:01:13]} Kb8 {[%emt 0:02:10]} 31. cxd5 {[%emt 0:00:17]} exd5 {[%emt 0:00:02]} 32. Qe3 {[%emt 0:02:35]} Re8 {[%emt 0:03:58]} 33. Qxe1 {[%emt 0:02:27]} Rxe1 {[%emt 0:00:02]} 34. Kf2 {[%emt 0:00:58]} Nd3+ {[%emt 0:02:40]} 35. Kg2 {[%emt 0:00:13]} Re4 {[%emt 0:00:43]} 36. Rd2 {[%emt 0:00:33]} Nf4+ {[%emt 0:01:59]} 37. Kf2 {[%emt 0:00:17]} Kc7 {[%emt 0:03:01]} 38. Ng3 {[%emt 0:00:37]} Re6 {[%emt 0:00:06]} 39. Kf3 {[%emt 0:00:19]} Rh6 {[%emt 0:01:39]} 40. Kg4 {[%emt 0:00:00]} f6 {[%emt 0:00:00]} 41. Kf5 {[%emt 0:09:43]} Kd6 {[%emt 0:02:43]} 42. Nf1 {[%emt 0:06:07]} Ne6 {[%emt 0:01:05]} 43. Ne3 {[%emt 0:01:30]} Ng7+ {[%emt 0:00:21]} 44. Kg4 {[%emt 0:00:06]} Rh4+ {[%emt 0:00:17]} 45. Kf3 {[%emt 0:01:26]} Rf4+ {[%emt 0:00:39]} 46. Kg2 {[%emt 0:00:50]} Ne6 {[%emt 0:00:38]} 47. Nc2 {[%emt 0:01:02]} Re4 {[%emt 0:01:14]} 48. Kf3 {[%emt 0:03:27]} a5 {[%emt 0:01:44]} 49. Rd3 {[%emt 0:01:29]} b5 {[%emt 0:01:27]} 50. Rd2 {[%emt 0:02:11]} f5 {[%emt 0:00:37]} 51. h3 {[%emt 0:02:05]} Rh4 {[%emt 0:04:17]} 52. Kg3 {[%emt 0:00:18]} Nf4 {[%emt 0:00:17]} 53. Rh2 {[%emt 0:00:55]} Nh5+ {[%emt 0:00:22]} 54. Kg2 {[%emt 0:00:51]} Nf6 {[%emt 0:00:25]} 55. Rh1 {[%emt 0:01:29]} Re4 {[%emt 0:02:58]} 56. Rf1 {[%emt 0:01:20]} Ke6 {[%emt 0:00:36]} 57. Re1 {[%emt 0:01:05]} Nh5 {[%emt 0:01:00]} 58. Kf3 {[%emt 0:02:52]} Nf4 {[%emt 0:05:26]} 59. h4 {[%emt 0:01:01]} Nd3 {[%emt 0:00:11]} 60. Rxe4+ {[%emt 0:01:13]} dxe4+ {[%emt 0:00:02]} 61. Kg3 {[%emt 0:00:17]} f4+ {[%emt 0:00:44]} 62. Kg4 {[%emt 0:00:10]} gxh4 {[%emt 0:00:10]} 63. Kxh4 {[%emt 0:00:05]} Kd5 {[%emt 0:00:17]} 64. Kg4 {[%emt 0:01:26]} f3 {[%emt 0:00:16]} 65. Kg3 {[%emt 0:00:41]} Nxb2 {[%emt 0:01:39]} 66. Kf2 {[%emt 0:00:43]} Nd3+ {[%emt 0:00:08]} 67. Ke3 {[%emt 0:00:54]} b4 {[%emt 0:00:16]} 68. Kd2 {[%emt 0:00:42]} f2 {[%emt 0:00:18]} 69. Ke2 {[%emt 0:00:20]} a4 {[%emt 0:00:11]} 70. Na1 {[%emt 0:00:45]} Kxd4 {[%emt 0:00:10]} 0-1

[Event "Najdorf Memorial-A 2022"]
[Site "Warsaw"]
[Date "2022.07.13"]
[Round "5.8"]
[White "Golecki, Jan"]
[Black "Raczek, Krzysztof"]
[Result "0-1"]
[ECO "A05"]
[WhiteElo "2219"]
[BlackElo "2114"]
[Annotator "ChessBase"]
[PlyCount "111"]
[EventDate "2022.07.09"]
[EventType "swiss"]
[EventCountry "POL"]
[SourceTitle "playchess.com"]
[Source "ChessBase"]
[SourceQuality "1"]
[TimeControl "40/5400+30:1800+30"]

1. Nf3 {[%emt 0:00:04]} Nf6 {[%emt 0:00:04]} 2. b3 {[%emt 0:00:03]} d6 {[%emt 0:00:42]} 3. d4 {[%emt 0:00:43]} g6 {[%emt 0:00:06]} 4. Bb2 {[%emt 0:00:06]} Bg7 {[%emt 0:00:02]} 5. g3 {[%emt 0:00:06]} O-O {[%emt 0:00:09]} 6. Bg2 {[%emt 0:00:05]} b5 {[%emt 0:04:15]} 7. a4 {[%emt 0:14:07]} b4 {[%emt 0:00:29]} 8. Ne5 {[%emt 0:03:26]} dxe5 {[%emt 0:02:27]} 9. Bxa8 {[%emt 0:00:44]} c6 {[%emt 0:01:25]} 10. Qd2 {[%emt 0:07:03]} a5 {[%emt 0:01:57]} 11. dxe5 {[%emt 0:00:17]} Nfd7 {[%emt 0:02:49]} 12. Qe3 {[%emt 0:16:39]} Nb6 {[%emt 0:01:32]} 13. Nd2 {[%emt 0:00:41]} Qc7 {[%emt 0:00:44]} 14. Nc4 {[%emt 0:00:57]} Nxa8 {[%emt 0:00:27]} 15. Qc5 {[%emt 0:00:59]} Na6 {[%emt 0:05:09]} 16. Qxa5 {[%emt 0:00:17]} Qb7 {[%emt 0:00:30]} 17. O-O-O {[%emt 0:01:49]} Be6 {[%emt 0:04:54]} 18. Ne3 {[%emt 0:08:53]} c5 {[%emt 0:03:27]} 19. h4 {[%emt 0:01:22]} N8c7 {[%emt 0:00:29]} 20. h5 {[%emt 0:00:23]} Qe4 {[%emt 0:00:23]} 21. Rh4 {[%emt 0:00:18]} Qc6 {[%emt 0:00:41]} 22. h6 {[%emt 0:00:32]} Bh8 {[%emt 0:03:55]} 23. f4 {[%emt 0:03:39]} Ra8 {[%emt 0:03:48]} 24. f5 {[%emt 0:01:11]} gxf5 {[%emt 0:03:12]} 25. Rf4 {[%emt 0:02:20]} Kf8 {[%emt 0:03:55]} 26. Nxf5 {[%emt 0:00:53]} Nd5 {[%emt 0:00:34]} 27. Qb5 {[%emt 0:25:06]} Qxb5 {[%emt 0:00:45]} 28. axb5 {[%emt 0:00:04]} Nxf4 {[%emt 0:00:05]} 29. gxf4 {[%emt 0:00:10]} Bxf5 {[%emt 0:02:32]} 30. bxa6 {[%emt 0:00:14]} Ke8 {[%emt 0:00:15]} 31. Rg1 {[%emt 0:02:31]} Kd7 {[%emt 0:01:31]} 32. Kd2 {[%emt 0:03:55]} Ke6 {[%emt 0:01:20]} 33. Re1 {[%emt 0:04:25]} Be4 {[%emt 0:00:45]} 34. Ke3 {[%emt 0:00:04]} Bg6 {[%emt 0:03:37]} 35. Ra1 {[%emt 0:03:05]} f6 {[%emt 0:00:51]} 36. a7 {[%emt 0:00:31]} fxe5 {[%emt 0:00:24]} 37. Ra6+ {[%emt 0:00:19]} Kd5 {[%emt 0:00:28]} 38. Kd2 {[%emt 0:00:43]} Bf6 {[%emt 0:00:35]} 39. f5 {[%emt 0:00:28]} Bxf5 {[%emt 0:00:15]} 40. c4+ {[%emt 0:00:00]} bxc3+ {[%emt 0:00:00]} 41. Bxc3 {[%emt 0:00:12]} Bc8 {[%emt 0:02:35]} 42. Ra5 {[%emt 0:00:10]} Kc6 {[%emt 0:00:27]} 43. b4 {[%emt 0:00:09]} cxb4 {[%emt 0:00:17]} 44. Bxb4 {[%emt 0:00:01]} Kb6 {[%emt 0:00:18]} 45. Ra3 {[%emt 0:00:52]} Ba6 {[%emt 0:00:14]} 46. Rb3 {[%emt 0:00:01]} Rd8+ {[%emt 0:01:05]} 47. Ke3 {[%emt 0:01:15]} Kxa7 {[%emt 0:00:19]} 48. Bc5+ {[%emt 0:00:12]} Ka8 {[%emt 0:00:04]} 49. Rb6 {[%emt 0:01:08]} Bb7 {[%emt 0:00:19]} 50. Re6 {[%emt 0:00:22]} Rd7 {[%emt 0:00:06]} 51. Rb6 {[%emt 0:00:59]} Kb8 {[%emt 0:00:28]} 52. Rb1 {[%emt 0:00:25]} Bg5+ {[%emt 0:00:16]} 53. Kf2 {[%emt 0:00:06]} Bxh6 {[%emt 0:00:09]} 54. Rg1 {[%emt 0:00:17]} Be4 {[%emt 0:00:21]} 55. Rg4 {[%emt 0:01:03]} Bg6 {[%emt 0:00:25]} 56. Bd6+ {[%emt 0:00:36]} 0-1

[Event "Najdorf Memorial-A 2022"]
[Site "Warsaw"]
[Date "2022.07.13"]
[Round "5.8"]
[White "Iwanczuk, Krzysztof"]
[Black "Bojczewski, Mateusz"]
[Result "1/2-1/2"]
[ECO "B12"]
[WhiteElo "1947"]
[BlackElo "1735"]
[Annotator "ChessBase"]
[PlyCount "108"]
[EventDate "2022.07.09"]
[EventType "swiss"]
[EventCountry "POL"]
[SourceTitle "playchess.com"]
[Source "ChessBase"]
[SourceQuality "1"]
[TimeControl "40/5400+30:1800+30"]

1. e4 {[%emt 0:00:02]} c6 {[%emt 0:00:03]} 2. d4 {[%emt 0:00:08]} d5 {[%emt 0:00:05]} 3. e5 {[%emt 0:00:05]} Bf5 {[%emt 0:00:09]} 4. Nd2 {[%emt 0:00:07]} e6 {[%emt 0:01:21]} 5. Nb3 {[%emt 0:00:07]} Nd7 {[%emt 0:00:34]} 6. Nf3 {[%emt 0:00:11]} Qc7 {[%emt 0:04:02]} 7. Be2 {[%emt 0:04:07]} h6 {[%emt 0:00:24]} 8. O-O {[%emt 0:01:20]} c5 {[%emt 0:01:22]} 9. dxc5 {[%emt 0:02:45]} Ne7 {[%emt 0:03:33]} 10. c4 {[%emt 0:18:26]} dxc4 {[%emt 0:02:26]} 11. Bxc4 {[%emt 0:00:47]} Nxe5 {[%emt 0:08:25]} 12. Nxe5 {[%emt 0:02:01]} Qxe5 {[%emt 0:00:15]} 13. Re1 {[%emt 0:04:02]} Qc7 {[%emt 0:02:16]} 14. Bb5+ {[%emt 0:00:33]} Nc6 {[%emt 0:00:25]} 15. Nd4 {[%emt 0:01:28]} O-O-O {[%emt 0:06:21]} 16. Bxc6 {[%emt 0:03:52]} bxc6 {[%emt 0:07:00]} 17. Qa4 {[%emt 0:00:56]} Bxc5 {[%emt 0:02:31]} 18. Nxc6 {[%emt 0:03:52]} Rd6 {[%emt 0:04:00]} 19. Ne5 {[%emt 0:02:03]} f6 {[%emt 0:16:29]} 20. Nc4 {[%emt 0:03:53]} Rc6 {[%emt 0:05:36]} 21. Be3 {[%emt 0:10:09]} Bc2 {[%emt 0:07:32]} 22. b3 {[%emt 0:07:11]} Bxe3 {[%emt 0:04:18]} 23. Nxe3 {[%emt 0:03:40]} Rd8 {[%emt 0:02:46]} 24. Nxc2 {[%emt 0:04:43]} Rxc2 {[%emt 0:00:07]} 25. Qa6+ {[%emt 0:00:07]} Kb8 {[%emt 0:02:06]} 26. Qxe6 {[%emt 0:03:12]} Qf4 {[%emt 0:02:04]} 27. Re2 {[%emt 0:06:53]} Rdd2 {[%emt 0:00:41]} 28. Qe8+ {[%emt 0:00:56]} Kc7 {[%emt 0:00:33]} 29. Qe7+ {[%emt 0:04:05]} Kb8 {[%emt 0:02:13]} 30. Qe8+ {[%emt 0:00:08]} Kc7 {[%emt 0:00:26]} 31. Qf7+ {[%emt 0:01:13]} Kb6 {[%emt 0:02:05]} 32. Re6+ {[%emt 0:00:22]} Rd6 {[%emt 0:07:23]} 33. Rxd6+ {[%emt 0:00:22]} Qxd6 {[%emt 0:00:07]} 34. Qxg7 {[%emt 0:00:09]} Rxf2 {[%emt 0:00:44]} 35. Qg3 {[%emt 0:05:40]} Qxg3 {[%emt 0:04:06]} 36. hxg3 {[%emt 0:00:05]} Rf5 {[%emt 0:01:22]} 37. Rf1 {[%emt 0:01:40]} Rxf1+ {[%emt 0:00:37]} 38. Kxf1 {[%emt 0:00:04]} Kc5 {[%emt 0:00:02]} 39. Ke2 {[%emt 0:00:28]} Kb4 {[%emt 0:00:14]} 40. Kd3 {[%emt 0:00:00]} Ka3 {[%emt 0:00:00]} 41. Kc4 {[%emt 0:15:38]} Kxa2 {[%emt 0:00:56]} 42. b4 {[%emt 0:01:57]} Ka3 {[%emt 0:00:14]} 43. b5 {[%emt 0:01:01]} Ka4 {[%emt 0:01:52]} 44. g4 {[%emt 0:02:22]} Ka5 {[%emt 0:00:08]} 45. Kc5 {[%emt 0:00:30]} Ka4 {[%emt 0:00:13]} 46. b6 {[%emt 0:03:32]} axb6+ {[%emt 0:00:06]} 47. Kxb6 {[%emt 0:00:03]} Kb4 {[%emt 0:00:06]} 48. Kc6 {[%emt 0:00:06]} Kc4 {[%emt 0:00:03]} 49. Kd6 {[%emt 0:00:03]} Kd4 {[%emt 0:00:18]} 50. Ke6 {[%emt 0:00:04]} Ke4 {[%emt 0:00:25]} 51. Kxf6 {[%emt 0:00:08]} Kf4 {[%emt 0:00:06]} 52. Kg6 {[%emt 0:00:17]} Kxg4 {[%emt 0:00:09]} 53. Kxh6 {[%emt 0:00:09]} Kg3 {[%emt 0:00:03]} 54. Kg5 {[%emt 0:00:05]} Kxg2 {[%emt 0:00:04]} 1/2-1/2

[Event "Najdorf Memorial-A 2022"]
[Site "Warsaw"]
[Date "2022.07.13"]
[Round "5.9"]
[White "Padalka, Artem"]
[Black "Siekanska, Zuzanna"]
[Result "0-1"]
[ECO "A14"]
[WhiteElo "2204"]
[BlackElo "1712"]
[Annotator "ChessBase"]
[PlyCount "61"]
[EventDate "2022.07.09"]
[EventType "swiss"]
[EventCountry "POL"]
[SourceTitle "playchess.com"]
[Source "ChessBase"]
[SourceQuality "1"]
[TimeControl "40/5400+30:1800+30"]

1. Nf3 {[%emt 0:05:21]} e6 {[%emt 0:00:50]} 2. c4 {[%emt 0:01:40]} Nf6 {[%emt 0:00:17]} 3. g3 {[%emt 0:00:22]} d5 {[%emt 0:03:36]} 4. Bg2 {[%emt 0:00:12]} Be7 {[%emt 0:01:07]} 5. O-O {[%emt 0:00:30]} O-O {[%emt 0:00:09]} 6. d3 {[%emt 0:07:22]} c5 {[%emt 0:02:04]} 7. Nc3 {[%emt 0:08:15]} Nc6 {[%emt 0:02:20]} 8. e4 {[%emt 0:07:39]} d4 {[%emt 0:01:06]} 9. Ne2 {[%emt 0:00:34]} a6 {[%emt 0:05:37]} 10. Ne1 {[%emt 0:08:31]} Rb8 {[%emt 0:02:38]} 11. f4 {[%emt 0:06:48]} Ng4 {[%emt 0:08:13]} 12. Nc2 {[%emt 0:03:32]} b5 {[%emt 0:12:44]} 13. b3 {[%emt 0:02:26]} bxc4 {[%emt 0:04:01]} 14. bxc4 {[%emt 0:00:05]} Nb4 {[%emt 0:12:57]} 15. Rb1 {[%emt 0:09:32]} Bb7 {[%emt 0:04:37]} 16. Nexd4 {[%emt 0:14:33]} Nh6 {[%emt 0:17:04]} 17. a3 {[%emt 0:07:15]} Nxd3 {[%emt 0:01:11]} 18. Rxb7 {[%emt 0:03:24]} Rxb7 {[%emt 0:05:46]} 19. Nc6 {[%emt 0:00:03]} Qb6 {[%emt 0:02:30]} 20. Nxe7+ {[%emt 0:00:47]} Rxe7 {[%emt 0:00:01]} 21. Qxd3 {[%emt 0:00:09]} Rd8 {[%emt 0:00:12]} 22. Qc3 {[%emt 0:00:55]} Red7 {[%emt 0:02:23]} 23. f5 {[%emt 0:02:43]} Rd3 24. Qe5 {[%emt 0:02:46]} exf5 {[%emt 0:02:47]} 25. Ne3 {[%emt 0:00:30]} f6 {[%emt 0:01:23]} 26. Qf4 {[%emt 0:00:22]} R3d4 {[%emt 0:02:17]} 27. Nd5 {[%emt 0:01:01]} Qd6 {[%emt 0:01:29]} 28. Qxd6 {[%emt 0:00:51]} Rxd6 {[%emt 0:00:02]} 29. Bxh6 {[%emt 0:00:11]} gxh6 {[%emt 0:00:09]} 30. Ne7+ {[%emt 0:00:10]} Kf7 {[%emt 0:00:28]} 31. Nxf5 {[%emt 0:00:02]} 0-1

[Event "Najdorf Memorial-A 2022"]
[Site "Warsaw"]
[Date "2022.07.13"]
[Round "5.9"]
[White "Polak, Michal"]
[Black "Niezhentsev, Kyrylo"]
[Result "1-0"]
[ECO "B40"]
[WhiteElo "1944"]
[BlackElo "1721"]
[Annotator "ChessBase"]
[PlyCount "71"]
[EventDate "2022.07.09"]
[EventType "swiss"]
[EventCountry "POL"]
[SourceTitle "playchess.com"]
[Source "ChessBase"]
[SourceQuality "1"]
[TimeControl "40/5400+30:1800+30"]

1. e4 {[%emt 0:02:19]} c5 {[%emt 0:00:01]} 2. Nf3 {[%emt 0:00:07]} e6 {[%emt 0:00:07]} 3. d4 {[%emt 0:00:06]} cxd4 {[%emt 0:00:17]} 4. Nxd4 {[%emt 0:00:18]} Nf6 {[%emt 0:00:11]} 5. Nc3 {[%emt 0:00:07]} Nc6 {[%emt 0:00:11]} 6. Nxc6 {[%emt 0:00:40]} bxc6 {[%emt 0:00:14]} 7. Bd3 {[%emt 0:00:25]} d5 {[%emt 0:00:18]} 8. O-O {[%emt 0:00:24]} Bd6 {[%emt 0:15:44]} 9. Qe2 {[%emt 0:00:57]} Qc7 {[%emt 0:03:59]} 10. f4 {[%emt 0:01:13]} Bc5+ {[%emt 0:11:01]} 11. Kh1 {[%emt 0:00:37]} O-O {[%emt 0:03:08]} 12. e5 {[%emt 0:18:29]} Nd7 {[%emt 0:00:46]} 13. Rf3 {[%emt 0:02:32]} g6 {[%emt 0:08:09]} 14. Bd2 {[%emt 0:14:02]} Re8 {[%emt 0:05:20]} 15. Re1 {[%emt 0:01:16]} a6 {[%emt 0:03:25]} 16. Nd1 {[%emt 0:18:00]} Qb6 {[%emt 0:22:22]} 17. Rh3 {[%emt 0:02:42]} a5 {[%emt 0:01:13]} 18. Qg4 {[%emt 0:05:28]} Qd8 {[%emt 0:02:08]} 19. Ne3 {[%emt 0:07:56]} Ba6 {[%emt 0:03:58]} 20. Be2 {[%emt 0:02:43]} Bxe2 {[%emt 0:01:07]} 21. Qxe2 {[%emt 0:00:09]} a4 {[%emt 0:03:41]} 22. Ng4 {[%emt 0:01:51]} Qe7 {[%emt 0:04:50]} 23. Rd1 {[%emt 0:04:21]} Rab8 {[%emt 0:04:01]} 24. b3 {[%emt 0:02:22]} axb3 {[%emt 0:00:59]} 25. axb3 {[%emt 0:00:11]} Qf8 {[%emt 0:05:05]} 26. Nh6+ {[%emt 0:07:10]} Kh8 {[%emt 0:00:17]} 27. Bc3 {[%emt 0:00:53]} Qg7 {[%emt 0:00:49]} 28. g4 {[%emt 0:02:24]} Ra8 {[%emt 0:00:36]} 29. f5 {[%emt 0:00:44]} gxf5 {[%emt 0:00:28]} 30. gxf5 {[%emt 0:00:24]} Ra2 {[%emt 0:00:33]} 31. Qh5 {[%emt 0:00:52]} Bf2 {[%emt 0:00:29]} 32. Nxf7+ {[%emt 0:01:00]} Kg8 {[%emt 0:00:01]} 33. Nh6+ {[%emt 0:01:02]} Kf8 {[%emt 0:00:07]} 34. fxe6 {[%emt 0:00:51]} Rxe6 {[%emt 0:01:12]} 35. Rf3+ {[%emt 0:00:14]} Ke7 {[%emt 0:00:27]} 36. Nf5+ {[%emt 0:00:09]} 1-0

[Event "Najdorf Memorial-A 2022"]
[Site "Warsaw"]
[Date "2022.07.13"]
[Round "5.10"]
[White "Kotowicz, Kamil"]
[Black "Ratajczak, Hubert"]
[Result "0-1"]
[ECO "A05"]
[WhiteElo "1770"]
[BlackElo "1943"]
[Annotator "ChessBase"]
[PlyCount "68"]
[EventDate "2022.07.09"]
[EventType "swiss"]
[EventCountry "POL"]
[SourceTitle "playchess.com"]
[Source "ChessBase"]
[SourceQuality "1"]
[TimeControl "40/5400+30:1800+30"]

1. Nf3 {[%emt 0:00:11]} Nf6 {[%emt 0:00:12]} 2. b3 {[%emt 0:00:06]} g6 {[%emt 0:00:37]} 3. Bb2 {[%emt 0:00:08]} Bg7 {[%emt 0:00:01]} 4. c4 {[%emt 0:00:22]} O-O {[%emt 0:00:44]} 5. g3 {[%emt 0:03:39]} c5 {[%emt 0:01:47]} 6. Bg2 {[%emt 0:00:27]} b6 {[%emt 0:00:38]} 7. O-O {[%emt 0:01:58]} Bb7 {[%emt 0:00:14]} 8. d3 {[%emt 0:04:23]} d5 {[%emt 0:05:28]} 9. cxd5 {[%emt 0:01:56]} Nxd5 {[%emt 0:00:57]} 10. Bxg7 {[%emt 0:02:28]} Kxg7 {[%emt 0:00:02]} 11. Qd2 {[%emt 0:02:32]} e6 {[%emt 0:05:12]} 12. Na3 {[%emt 0:04:25]} Nc6 {[%emt 0:03:57]} 13. h4 {[%emt 0:02:28]} e5 {[%emt 0:06:18]} 14. Nc4 {[%emt 0:08:37]} f6 {[%emt 0:01:50]} 15. Rac1 {[%emt 0:03:23]} Qe7 {[%emt 0:03:47]} 16. Nh2 {[%emt 0:04:06]} Rad8 {[%emt 0:04:48]} 17. Ng4 {[%emt 0:10:06]} f5 {[%emt 0:03:16]} 18. Ngxe5 {[%emt 0:03:29]} Nxe5 {[%emt 0:03:08]} 19. Qb2 {[%emt 0:00:40]} Rfe8 {[%emt 0:04:26]} 20. f4 {[%emt 0:00:24]} Kg8 {[%emt 0:05:37]} 21. fxe5 {[%emt 0:02:12]} Ba8 {[%emt 0:04:00]} 22. a4 {[%emt 0:03:51]} a6 {[%emt 0:10:16]} 23. Bxd5+ {[%emt 0:03:04]} Rxd5 {[%emt 0:00:35]} 24. Nxb6 {[%emt 0:05:44]} Rxe5 {[%emt 0:00:11]} 25. Rf2 {[%emt 0:02:20]} Re3 {[%emt 0:02:15]} 26. Nxa8 {[%emt 0:02:34]} Rxg3+ {[%emt 0:00:13]} 27. Kf1 {[%emt 0:00:51]} Qxh4 {[%emt 0:01:26]} 28. e4 {[%emt 0:04:56]} Qh3+ {[%emt 0:05:37]} 29. Ke1 {[%emt 0:00:44]} Rxd3 {[%emt 0:01:09]} 30. Rc4 {[%emt 0:02:03]} Rxe4+ {[%emt 0:01:22]} 31. Rxe4 {[%emt 0:00:42]} Qh1+ {[%emt 0:00:01]} 32. Rf1 {[%emt 0:01:40]} Qxe4+ {[%emt 0:00:03]} 33. Kf2 {[%emt 0:01:14]} Rf3+ {[%emt 0:00:08]} 34. Kg1 {[%emt 0:00:10]} Rg3+ {[%emt 0:00:06]} 0-1

[Event "Najdorf Memorial-A 2022"]
[Site "Warsaw"]
[Date "2022.07.13"]
[Round "5.11"]
[White "Fiedorek, Michal"]
[Black "Pancewicz, Szymon"]
[Result "1-0"]
[ECO "B47"]
[WhiteElo "2289"]
[BlackElo "1756"]
[Annotator "ChessBase"]
[PlyCount "73"]
[EventDate "2022.07.09"]
[EventType "swiss"]
[EventCountry "POL"]
[SourceTitle "playchess.com"]
[Source "ChessBase"]
[SourceQuality "1"]
[TimeControl "40/5400+30:1800+30"]

1. e4 {[%emt 0:05:07]} c5 {[%emt 0:00:57]} 2. Nf3 {[%emt 0:00:06]} e6 {[%emt 0:00:05]} 3. d4 {[%emt 0:00:04]} cxd4 {[%emt 0:00:09]} 4. Nxd4 {[%emt 0:00:05]} Nc6 {[%emt 0:00:16]} 5. Nc3 {[%emt 0:00:06]} Qc7 {[%emt 0:01:05]} 6. g3 {[%emt 0:00:48]} a6 {[%emt 0:05:37]} 7. Bg2 {[%emt 0:00:27]} Nf6 {[%emt 0:02:29]} 8. O-O {[%emt 0:00:49]} Nxd4 {[%emt 0:02:34]} 9. Qxd4 {[%emt 0:00:06]} Bc5 {[%emt 0:00:25]} 10. Bf4 {[%emt 0:00:52]} d6 {[%emt 0:01:24]} 11. Qd2 {[%emt 0:00:34]} h6 {[%emt 0:02:49]} 12. Rad1 {[%emt 0:00:38]} e5 {[%emt 0:00:56]} 13. Be3 {[%emt 0:00:05]} Be6 {[%emt 0:01:22]} 14. Bxc5 {[%emt 0:00:22]} dxc5 {[%emt 0:00:10]} 15. Nd5 {[%emt 0:00:06]} Bxd5 {[%emt 0:00:31]} 16. exd5 {[%emt 0:00:06]} Qd6 {[%emt 0:00:13]} 17. Rfe1 {[%emt 0:00:46]} O-O {[%emt 0:02:29]} 18. Re3 {[%emt 0:00:43]} b5 {[%emt 0:13:39]} 19. b3 {[%emt 0:03:03]} Rab8 {[%emt 0:08:30]} 20. Rde1 {[%emt 0:01:56]} Nd7 {[%emt 0:09:00]} 21. Bh3 {[%emt 0:23:31]} f5 {[%emt 0:01:58]} 22. Rf3 {[%emt 0:00:21]} Qg6 {[%emt 0:05:09]} 23. d6 {[%emt 0:01:10]} Kh8 {[%emt 0:04:48]} 24. Rd3 {[%emt 0:04:44]} Rf6 {[%emt 0:08:54]} 25. Qa5 {[%emt 0:11:26]} Rb6 {[%emt 0:15:45]} 26. Rxe5 {[%emt 0:10:08]} Nxe5 {[%emt 0:02:25]} 27. Qxb6 {[%emt 0:00:13]} Nxd3 {[%emt 0:00:19]} 28. Qb8+ {[%emt 0:02:49]} Kh7 {[%emt 0:00:09]} 29. d7 {[%emt 0:00:31]} Rd6 {[%emt 0:01:19]} 30. d8=Q {[%emt 0:05:42]} Rxd8 {[%emt 0:00:20]} 31. Qxd8 {[%emt 0:00:05]} Nf4 {[%emt 0:01:49]} 32. Bf1 {[%emt 0:00:40]} Ne6 {[%emt 0:02:42]} 33. Qd6 {[%emt 0:06:44]} b4 {[%emt 0:02:54]} 34. Bc4 {[%emt 0:02:24]} Qg5 {[%emt 0:03:45]} 35. Qxe6 {[%emt 0:02:53]} Qc1+ {[%emt 0:00:15]} 36. Kg2 {[%emt 0:00:07]} Qxc2 {[%emt 0:00:03]} 37. Qd5 {[%emt 0:00:38]} 1-0

[Event "Najdorf Memorial-A 2022"]
[Site "Warsaw"]
[Date "2022.07.13"]
[Round "5.11"]
[White "Sowul, Bartosz"]
[Black "Liberadzki, Slawomir"]
[Result "1-0"]
[ECO "B24"]
[WhiteElo "2283"]
[BlackElo "2035"]
[Annotator "ChessBase"]
[PlyCount "43"]
[EventDate "2022.07.09"]
[EventType "swiss"]
[EventCountry "POL"]
[SourceTitle "playchess.com"]
[Source "ChessBase"]
[SourceQuality "1"]
[TimeControl "40/5400+30:1800+30"]

1. e4 {[%emt 0:00:06]} c5 {[%emt 0:09:47]} 2. Nc3 {[%emt 0:00:06]} Nc6 {[%emt 0:00:27]} 3. Bb5 {[%emt 0:00:06]} Nd4 {[%emt 0:00:49]} 4. Nf3 {[%emt 0:00:05]} Nxb5 {[%emt 0:03:02]} 5. Nxb5 {[%emt 0:00:06]} a6 {[%emt 0:00:58]} 6. Nc3 {[%emt 0:00:06]} d6 {[%emt 0:00:53]} 7. d4 {[%emt 0:00:05]} cxd4 {[%emt 0:02:14]} 8. Qxd4 {[%emt 0:00:07]} Nf6 {[%emt 0:01:35]} 9. Bg5 {[%emt 0:00:10]} Bg4 {[%emt 0:05:39]} 10. h3 {[%emt 0:02:23]} Bxf3 {[%emt 0:03:17]} 11. gxf3 {[%emt 0:00:07]} Qa5 {[%emt 0:02:40]} 12. h4 {[%emt 0:07:44]} Qc5 {[%emt 0:16:16]} 13. Qd2 {[%emt 0:04:53]} e6 {[%emt 0:01:09]} 14. O-O-O {[%emt 0:01:02]} Be7 {[%emt 0:05:43]} 15. Rhg1 {[%emt 0:01:22]} O-O {[%emt 0:11:01]} 16. Bh6 {[%emt 0:01:16]} Ne8 {[%emt 0:00:09]} 17. Nd5 {[%emt 0:00:46]} exd5 {[%emt 0:02:03]} 18. Bxg7 {[%emt 0:00:09]} f6 {[%emt 0:02:57]} 19. Bxf8+ {[%emt 0:00:24]} Kxf8 {[%emt 0:00:17]} 20. Qh6+ {[%emt 0:00:05]} Kf7 {[%emt 0:00:28]} 21. Qxh7+ {[%emt 0:00:15]} Ke6 {[%emt 0:00:13]} 22. Qf5+ {[%emt 0:00:06]} 1-0